Cogmind - Beta 13 @@@ ROGUE MODE // 2024.04.02 @ 10:16:51 Player: WindowsAttacker Result: Destroyed by Y-45 Defender with Beam Rifle Performance ------------- Evolutions (2) 1000 Regions Visited (6) 1200 Robots Destroyed (41) 205 Value Destroyed (1123) 1123 Prototype IDs (3) 60 Alien Tech Used (0) 0 Bonus (308) 308 TOTAL SCORE: 3896 Bonus ------- High Alert Combat Kills 33 Follower Combat Kills 35 Aligned with FarCom 300 Friendly Fire -60 Cogmind --------- Core Integrity 0/550 Matter 74/300 Energy 100/100 System Corruption 0% Temperature Cool (9) Movement Core (50) Location -8/Storage Parts ------- > --- POWER (1) -------- (None) > --- PROPULSION (4) --- (None) > --- UTILITY (2) ------ (None) > --- WEAPON (4) ------- (None) > --- INVENTORY (5) ---- (None) Peak State ------------ > --- POWER ------------ Light Nuclear Core > --- PROPULSION ------- VTOL Module VTOL Module VTOL Module VTOL Module > --- UTILITY ---------- Advanced Targeting Computer Hacking Suite > --- WEAPON ----------- XL Autogun Array > --- INVENTORY -------- Sensor Array Autogun Rocket Launcher [Rating: 53] Favorites ----------- Power Ion Engine Engine Ion Engine Power Core Light Nuclear Core Propulsion Hover Unit Treads Light Treads Leg Improved Aluminum Leg Wheel Wheel Hover Unit Hover Unit Flight Unit VTOL Module Utility Targeting Computer Storage Small Storage Unit Processor Targeting Computer Hackware Hacking Suite Weapon Assault Rifle Energy Gun Medium Laser Ballistic Gun Assault Rifle Launcher Rocket Launcher Build | -11 -10 -10 -10 -9 -8 -8 ------- Run | Yrd Mat Min Exi Min Mat Sto Slots Evolved 4 | . . . . . 4 . Power . | . . . . . . . Propulsion 2 | . . . . . 2 . Utility . | . . . . . . . Weapon 2 | . . . . . 2 . Parts Attached 43 | 3 17 1 1 1 12 8 Power 6 | . 3 . . 1 2 . Engine 5 | . 3 . . 1 1 . Core 1 | . . . . . 1 . Reactor . | . . . . . . . Propulsion 22 | 3 7 1 . . 8 3 Treads 6 | 2 2 . . . 2 . Leg 4 | . . . . . 4 . Wheel 1 | 1 . . . . . . Hover 7 | . 5 1 . . 1 . Flight 4 | . . . . . 1 3 Utility 6 | . 3 . . . 1 2 Device . | . . . . . . . Storage 1 | . 1 . . . . . Processor 3 | . 2 . . . . 1 Hackware 2 | . . . . . 1 1 Protection . | . . . . . . . Artifact . | . . . . . . . Weapon 9 | . 4 . 1 . 1 3 Energy Gun 4 | . 3 . . . . 1 Energy Cannon . | . . . . . . . Ballistic Gun 3 | . 1 . . . 1 1 Ballistic Cannon . | . . . . . . . Launcher 2 | . . . 1 . . 1 Special Weapon . | . . . . . . . Impact Weapon . | . . . . . . . Slashing Weapon . | . . . . . . . Piercing Weapon . | . . . . . . . Special Melee Weapon . | . . . . . . . Unidentified Prototypes 1 | . . . . . 1 . Parts Lost 9 | . . . . . . 9 Power 1 | . . . . . . 1 Propulsion 4 | . . . . . . 4 Utility 1 | . . . . . . 1 Weapon 3 | . . . . . . 3 Highest Loss Streak 9 | . . . . . . 9 To Critical Strikes . | . . . . . . . Average Slot Usage (%) 80 | . 87 100 100 98 64 62 Engine 9 | . 13 14 14 13 8 . Core 1 | . . . . . . 7 Treads 4 | . 10 . . . 6 1 Leg 4 | . . . . . 13 . Hover 14 | . 14 28 28 28 6 . Flight 4 | . . . . . . 27 Storage 1 | . 7 . . . . . Processor 17 | . 14 28 28 28 11 9 Hackware 3 | . . . . . 6 7 Energy Gun 3 | . 12 14 . . . . Ballistic Gun 11 | . 14 14 14 14 9 7 Launcher 3 | . . . 14 14 . . Naked Turns . | . . . . . . . Heaviest Build 20 | . 14 9 11 11 20 20 Greatest Support 56 | 20 40 12 12 12 56 42 Greatest Overweight (x) 4 | . 2 . . . 1 4 Average Overweight (x) . | . . . . . . . Largest Inventory Capacity 8 | 5 8 5 5 5 5 5 Average Capacity 5 | 5 6 5 5 5 5 5 Most Carried 5 | 4 5 4 5 5 5 5 Average Carried 3 | 3 2 3 4 4 4 2 Final Capacity 5 | 5 5 5 5 5 5 5 Final Carried 5 | 4 4 4 5 5 4 . Class Distribution -------------------- 50% | Mutant 34% | Skirmisher 8% | Scavenger-Mutant 6% | Scavenger-Skirmisher Dominant Class ---------------- Mutant | -10/Materials Mutant | -10/Mines Mutant | -10/Exiles Scavenger-Mutant | -9/Mines Skirmisher | -8/Materials Skirmisher | -8/Storage Resources | -11 -10 -10 -10 -9 -8 -8 ----------- Run | Yrd Mat Min Exi Min Mat Sto Matter Collected 1171 | 179 207 82 . 63 328 312 Remotely . | . . . . . . . Salvage Created 1319 | . 169 57 . 146 358 589 Parts 104 | . 21 7 . 8 29 39 Haulers Intercepted 1 | . . . . . . 1 Recyclers Shooed 2 | . . . . 1 . 1 Parts Field Recycled . | . . . . . . . Retrieved Matter . | . . . . . . . Parts Self-Destructed . | . . . . . . . Prevented . | . . . . . . . Kills | -11 -10 -10 -10 -9 -8 -8 ------- Run | Yrd Mat Min Exi Min Mat Sto Combat Hostiles Destroyed 25 | . 2 1 . 5 4 13 Guns 20 | . 2 1 . 1 4 12 AOE 5 | . . . . 4 . 1 Classes Destroyed 11 | . 3 . . 1 3 4 Worker 2 | . 1 1 . . . . Builder 5 | . . . . . 3 2 Hauler 1 | . . . . . . 1 Recycler 1 | . . . . . 1 . Mechanic 1 | . . . . . . 1 Operator 1 | . . . . . . 1 Watcher 5 | . 3 . . . 1 1 Swarmer 4 | . . . . . . 4 Grunt 16 | . 2 1 . 4 2 7 Duelist 1 | . . . . 1 . . Sentry 4 | . . . . . 2 2 Best Kill Streak 14 | . 3 2 . 3 5 14 Combat Bots Only 9 | . 1 1 . 3 3 9 Max Kills in Single Turn 2 | . 1 1 . 2 1 2 Gunslinging . | . . . . . . . Exploded 2 | . . . . 2 . 1 Melee . | . . . . . . . Uniques/NPCs Destroyed . | . . . . . . . Combat | -11 -10 -10 -10 -9 -8 -8 -------- Run | Yrd Mat Min Exi Min Mat Sto Hostile Shots Fired 114 | . 10 7 . 4 7 86 Missed 30 | . 5 4 . . 2 19 Damage Taken 1384 | . 68 44 . 123 78 1071 Core 635 | . 48 15 . 10 13 549 Absorbed by Shields . | . . . . . . . Regen/Repaired (Parts) 28 | . . . . . 28 . Core Remaining (%) 85 | 100 . . . 70 . . Volleys Fired 84 | . 12 9 . 14 13 36 Largest 2 | . 2 2 . 2 1 2 Hottest 70 | . 70 70 . 53 60 60 Shots Fired 103 | . 24 13 . 16 13 37 Gun 96 | . 24 13 . 10 13 36 Cannon . | . . . . . . . Launcher 7 | . . . . 6 . 1 Special . | . . . . . . . Kinetic 77 | . 12 9 . 10 13 33 Thermal 19 | . 12 4 . . . 3 Explosive 7 | . . . . 6 . 1 Electromagnetic . | . . . . . . . Robot Hit Streak 23 | . 5 4 . 6 21 23 Robot Miss Streak 7 | . 4 3 . 2 7 4 Penetration Max . | . . . . . . . Secondary Targets . | . . . . . . . Shots Hit Robots 68 | . 11 6 . 9 11 31 Core Hits 59 | . 8 3 . 7 11 30 Critical Kills . | . . . . . . . Critical Parts Destroyed . | . . . . . . . Critical Strikes 1 | . . . . . . 1 Burn 1 | . . . . . . 1 Melee Attacks . | . . . . . . . Impact . | . . . . . . . Slashing . | . . . . . . . Piercing . | . . . . . . . Sneak Attacks . | . . . . . . . Combat Hostiles . | . . . . . . . Follow-up Attacks . | . . . . . . . Damage Inflicted 3247 | . 178 88 . 560 557 1864 Guns 2612 | . 178 88 . 75 557 1714 Cannons . | . . . . . . . Explosions 621 | . . . . 485 . 136 Melee . | . . . . . . . Ramming 14 | . . . . . . 14 Kinetic 2470 | . 103 50 . 75 557 1685 Thermal 142 | . 75 38 . . . 29 Explosive 621 | . . . . 485 . 136 Electromagnetic . | . . . . . . . Impact . | . . . . . . . Slashing . | . . . . . . . Piercing . | . . . . . . . Highest Corruption . | . . . . . . . Average Corruption . | . . . . . . . Corruption Purged . | . . . . . . . Corruption Blocked . | . . . . . . . Overload Shots . | . . . . . . . Overflow Damage 1 | . . . . 1 . . Projectiles . | . . . . . . . Explosions 1 | . . . . 1 . . Melee . | . . . . . . . Knockbacks . | . . . . . . . Impact . | . . . . . . . Kinetic . | . . . . . . . Secondary . | . . . . . . . Self-Inflicted Damage 33 | . . . . 27 . 6 Shots 1 | . . . . 1 . . Rammed 4 | . . . . . . 4 Targets Rammed 4 | . . . . . . 4 Kicked . | . . . . . . . Crushed . | . . . . . . . Highest Temperature 546 | . 102 107 . 10 193 546 Average Temperature 131 | . 31 59 . 6 60 212 Received Heat Transfer 582 | . 39 45 . 21 45 432 Effects 15 | . . . . . . 15 Shutdowns 1 | . . . . . . 1 Energy Bleed 1 | . . . . . . 1 Interference 3 | . . . . . . 3 Short Circuit 1 | . . . . . . 1 Damage (minor) 4 | . . . . . . 4 Damage (major) 5 | . . . . . . 5 Siege Activations . | . . . . . . . Robots Corrupted . | . . . . . . . Combat Hostiles . | . . . . . . . Parts Fried . | . . . . . . . Impact Corruptions . | . . . . . . . Robots Melted . | . . . . . . . Combat Hostiles . | . . . . . . . Parts Melted 2 | . 1 . . 1 . . Heat Transferred 481 | . 222 111 . . . 148 Parts Sabotaged . | . . . . . . . Parts Stolen . | . . . . . . . Parts Stripped . | . . . . . . . Power Chain Reactions . | . . . . . . . Alert | -11 -10 -10 -10 -9 -8 -8 ------- Run | Yrd Mat Min Exi Min Mat Sto Peak Influence 449 | . 126 117 . 161 283 449 Initial 62 | . . 48 . . 62 34 Average 123 | . 55 81 . 115 157 206 Maximum Alert Level 2 | . . . . . 1 2 Low Security (%) 80 | 100 100 100 . 100 65 60 Level 1 17 | . . . . . 34 29 Level 2 2 | . . . . . . 10 Level 3 . | . . . . . . . Level 4 . | . . . . . . . Level 5 . | . . . . . . . High Security . | . . . . . . . Max Security . | . . . . . . . Squads Dispatched 4 | . . 2 . . 1 1 Investigation . | . . . . . . . Extermination . | . . . . . . . Reinforcement 2 | . . . . . 1 1 Assault 2 | . . 2 . . . . Garrison . | . . . . . . . Intercept . | . . . . . . . Searches Triggered . | . . . . . . . Construction Impeded 2 | . . . . . 1 1 Haulers Reinforced . | . . . . . . . Active Scanning Responses . | . . . . . . . Cargo Convoy Interrupts . | . . . . . . . Stealth | -11 -10 -10 -10 -9 -8 -8 --------- Run | Yrd Mat Min Exi Min Mat Sto Distress Signals 3 | . 2 . . . . 1 Communications Jammed . | . . . . . . . Distress Signals . | . . . . . . . Times Spotted 41 | . 7 1 . 6 5 22 Peak Tracking Total 6 | . 5 1 . 3 3 6 Tactical Retreats 1 | . 1 . . . . . Traps | -11 -10 -10 -10 -9 -8 -8 ------- Run | Yrd Mat Min Exi Min Mat Sto Traps Triggered 5 | . 4 . . . . 1 Indirectly . | . . . . . . . Trap Hack Attempts . | . . . . . . . Triggered . | . . . . . . . Disarmed . | . . . . . . . Reprogrammed . | . . . . . . . Reused . | . . . . . . . Traps Extracted . | . . . . . . . Installed . | . . . . . . . Triggered . | . . . . . . . Machines | -11 -10 -10 -10 -9 -8 -8 ---------- Run | Yrd Mat Min Exi Min Mat Sto Machines Disabled 2 | . . . . . 2 . Max in Single Turn 1 | . . . . . 1 . Machines Repaired . | . . . . . . . Machines Dismantled . | . . . . . . . Machines Sabotaged . | . . . . . . . Overloaded Fab Kills . | . . . . . . . Hacking | -11 -10 -10 -10 -9 -8 -8 --------- Run | Yrd Mat Min Exi Min Mat Sto Machines Accessed 9 | . 2 . 2 . 3 2 Terminals 5 | . 1 . . . 2 2 Fabricators . | . . . . . . . Repair Stations 1 | . . . . . 1 . Recycling Units 1 | . 1 . . . . . Scanalyzers . | . . . . . . . Garrison Access . | . . . . . . . Total Hacks 47 | . 3 . 32 . 5 7 Successful 40 | . 2 . 32 . 4 2 Failed 7 | . 1 . . . 1 5 Catastrophic 2 | . . . . . 1 1 Database Lockouts . | . . . . . . . Manual 1 | . . . 1 . . . Terminals 12 | . 2 . . . 3 7 Fabricators . | . . . . . . . Repair Stations 2 | . . . . . 2 . Recycling Units 1 | . 1 . . . . . Scanalyzers . | . . . . . . . Garrison Access . | . . . . . . . Terminal Hacks 37 | . 1 . 32 . 2 2 Record 33 | . . . 32 . . 1 Prototype ID Bank 1 | . . . . . 1 . Dispatch Records 1 | . . . . . 1 . Zone Layout 2 | . 1 . . . . 1 Fabricator Hacks . | . . . . . . . Repair Station Hacks 2 | . . . . . 2 . Scan Component 1 | . . . . . 1 . Repair 1 | . . . . . 1 . Recycling Unit Hacks 1 | . 1 . . . . . Report Inventory 1 | . 1 . . . . . Scanalyzer . | . . . . . . . Garrison Access Hacks . | . . . . . . . Unauthorized Hacks . | . . . . . . . Terminals . | . . . . . . . Fabricators . | . . . . . . . Repair Stations . | . . . . . . . Recycling Units . | . . . . . . . Scanalyzers . | . . . . . . . Garrison Access . | . . . . . . . Data Cores Recovered 1 | . . . . . . 1 Used . | . . . . . . . Hacking Detections 6 | . 2 . . . 2 2 Full Trace Events . | . . . . . . . Feedback Events . | . . . . . . . Feedback Blocked . | . . . . . . . Robot Schematics Acquired . | . . . . . . . Robots Built . | . . . . . . . Authchips . | . . . . . . . Time . | . . . . . . . Total Robot Build Rating . | . . . . . . . Part Schematics Acquired . | . . . . . . . Parts Built . | . . . . . . . Authchips . | . . . . . . . Time . | . . . . . . . Total Part Build Rating . | . . . . . . . Parts Repaired 1 | . . . . . 1 . Time 26 | . . . . . 26 . Parts Recycled . | . . . . . . . Recycled Matter . | . . . . . . . Retrieved Matter . | . . . . . . . Retrieved Components . | . . . . . . . Parts Scanalyzed . | . . . . . . . Part Schematics Acquired . | . . . . . . . Parts Damaged . | . . . . . . . Bothacking | -11 -10 -10 -10 -9 -8 -8 ------------ Run | Yrd Mat Min Exi Min Mat Sto Used RIF Installer . | . . . . . . . Robots Hacked . | . . . . . . . Non-combat . | . . . . . . . Combat . | . . . . . . . Robot Hacks Applied . | . . . . . . . Relay Couplers Released . | . . . . . . . Fabnet Peak Effective % . | . . . . . . . Robots Rewired . | . . . . . . . Allies Hacked . | . . . . . . . Hacks Repelled . | . . . . . . . Allies | -11 -10 -10 -10 -9 -8 -8 -------- Run | Yrd Mat Min Exi Min Mat Sto Total Allies 4 | . . 4 . . . . Largest Group 4 | . . 4 2 2 2 1 Highest-Rated Group 71 | . . 71 24 24 24 8 Highest-Rated Ally 31 | . . 31 16 16 16 8 Total Orders . | . . . . . . . Ally Attacks 22 | . . 13 . 8 1 . Total Damage 232 | . . 133 . 99 . . Kills 1 | . . 1 . . . . Allies Corrupted . | . . . . . . . Allies Melted . | . . . . . . . Intel | -11 -10 -10 -10 -9 -8 -8 ------- Run | Yrd Mat Min Exi Min Mat Sto Robot Analysis Total . | . . . . . . . Derelict Logs Recovered 1 | . . . . 1 . . Drone Launches . | . . . . . . . Drone Recoveries . | . . . . . . . Exploration | -11 -10 -10 -10 -9 -8 -8 ------------- Run | Yrd Mat Min Exi Min Mat Sto Turns Passed 1589 | 83 300 104 261 134 457 250 Spaces Moved 1508 | 55 251 143 450 177 286 146 Core 20 | 8 12 . . . . . Treads 225 | 39 56 . . . 114 16 Legs 45 | . . . . . 45 . Wheels 8 | 8 . . . . . . Hover 1080 | . 183 143 450 177 127 . Flight 130 | . . . . . . 130 Fastest Speed 32 | 50 56 56 56 56 116 32 Average Speed 84 | 132 91 56 56 56 131 109 Slowest Speed 355 | 160 160 56 56 56 190 355 Overloaded Moves . | . . . . . . . Propulsion Burnouts . | . . . . . . . Robots Hopped . | . . . . . . . Cave-ins Triggered . | . . . . . . . Exploration Rate (%) 31 | 5 31 21 73 37 19 32 Regions Visited 6 Branch Regions 4 Pre-discovered Areas 1 | . . . 1 . . . Known Exits Taken . | . . . . . . . Unknown Exits Taken 6 | 1 1 1 1 1 1 . Scrap Searched 2 | . . 1 . 1 . . Spaces Dug . | . . . . . . . Terrain Destroyed 98 | . . . . 45 21 32 Melee . | . . . . . . . Projectile 48 | . . . . . 21 27 AOE 50 | . . . . 45 . 5 Terrain Rammed . | . . . . . . . Walls Destroyed . | . . . . . . . Machines Disabled . | . . . . . . . Actions | -11 -10 -10 -10 -9 -8 -8 --------- Run | Yrd Mat Min Exi Min Mat Sto Total 1772 | 65 296 153 459 195 371 233 Wait 61 | . . . 5 1 31 24 Move 1502 | 54 250 142 449 176 285 146 Hop . | . . . . . . . Pick Up 50 | 7 15 1 1 2 17 7 Fast Attach . | . . . . . . . Attach 30 | 2 13 1 . 1 6 7 Detach . | . . . . . . . Swap 13 | 1 4 . 1 . 6 1 Drop 28 | 1 2 . 3 1 13 8 Fire 84 | . 12 9 . 14 13 36 Melee . | . . . . . . . Ram 4 | . . . . . . 4 Kick . | . . . . . . . Crush . | . . . . . . . Escape Stasis . | . . . . . . . Rewire . | . . . . . . . Trap . | . . . . . . . Miscellaneous . | . . . . . . . Route ------- -11/Scrapyard -10/Materials (discovered 2 exits: [Mat] / [*Min]) -10/Mines -10/Exiles (discovered 2 exits: [*Min x2]) -9/Mines -8/Materials (discovered 2 exits: Fac / *Sto) -8/Storage History --------- Turn | Location | Event 11 | -11/Scrapyard | Discovered new exit (range 15) 84 | -11/Scrapyard | Entered Materials 305 | -10/Materials | Discovered new exit (range 17) 305 | -10/Materials | Discovered new exit (range 17) 309 | -10/Materials | Build established: Mutant 384 | -10/Materials | Entered Mines 386 | -10/Mines | Assembled infested the area 399 | -10/Mines | Met a Derelict testing a Signal Generator 406 | -10/Mines | Assisted by bots powering up and referring to "LRC-V3" 470 | -10/Mines | Met 8R-AWN 477 | -10/Mines | Received a Rocket Launcher from a helpful Derelict 485 | -10/Mines | Discovered new exit (range 5) 488 | -10/Mines | Entered Exiles 488 | -10/Exiles | Accompanied by 2 allies 503 | -10/Exiles | Discovered new exit (range 17) 515 | -10/Exiles | Welcomed by 8R-AWN 529 | -10/Exiles | Met EX-HEX 561 | -10/Exiles | Met EX-DEC 594 | -10/Exiles | Met EX-BIN 608 | -10/Exiles | Aligned with FarCom system 608 | -10/Exiles | Given EX-Vault access code 634 | -10/Exiles | Opened EX-Vault 638 | -10/Exiles | Found Prototype Ballistic Gun 658 | -10/Exiles | Warned to stay clear of 0b10 Research branches 683 | -10/Exiles | Learned location of Zion (-7) 717 | -10/Exiles | Discovered new exit (range 11) 749 | -10/Exiles | Left Exiles lab with XL Autogun Array 749 | -10/Exiles | Entered Mines 749 | -9/Mines | Accompanied by 2 allies 786 | -9/Mines | Learned 4 Materials zone layouts 865 | -9/Mines | Discovered new exit (range 12) 883 | -9/Mines | Entered Materials 883 | -8/Materials | Accompanied by 2 allies 883 | -8/Materials | Evolved 4 slots: Propulsion x2, Weapon x2 884 | -8/Materials | Identified exit to Factory 885 | -8/Materials | Identified XL Autogun Array 981 | -8/Materials | Repaired Hover Unit 1123 | -8/Materials | Discovered new exit (range 15) 1337 | -8/Materials | Build established: Skirmisher 1340 | -8/Materials | Entered Storage 1340 | -8/Storage | Accompanied by 1 ally 1573 | -8/Storage | Destroyed 9 combat bots 1576 | -8/Storage | Core integrity fell below 50% 1585 | -8/Storage | Core integrity fell below 20% 1590 | -8/Storage | Destroyed by Y-45 Defender with Beam Rifle Last Messages --------------- Overheating: System interference. Beam Rifle temporarily disabled. U-05 Engineer lays Concrete. Beam Rifle destroyed. U-05 Engineer lays Concrete. K-01 Serf collects debris. U-05 Engineer lays Concrete. Critical hit (Burn: +37). U-05 Engineer lays Concrete. Hacking Suite destroyed. K-01 Serf collects debris. U-05 Engineer lays Concrete. U-05 Engineer builds a Wall. K-01 Serf collects debris. U-05 Engineer lays Concrete. K-01 Serf collects debris. U-05 Engineer lays Concrete. U-05 Engineer builds a Wall. Adv. Targeting Computer severed. U-05 Engineer builds a Door. Map ----- +----------------------------------------------------+ | ?????????????????????????????????????????????????? | | ?????????????????????????????????????????????????? | | ?????????????????????????????????????????????????? | | ?????????????????????????????????????????????????? | | ?????????????????????????????????????????????????? | | ?????????????????????????????????????????????????? | | ?????????????????????????????????????????????????? | | ?????????????????????????????????????????????????? | | ?????????????????????????????????????????????????? | | ?????????????????????????????????????????????????? | | ?????????????????????????????????????????????????? | | ?????????????????????????####????????????????????? | | ????????????????????????? #????????????????????? | | ????????????????????????? #????????????????????? | | ????????????????????????? #????????????????????? | | ????????????????????????? #????????????????????? | | ?????????????Y??????????# #????????????????????? | | ????????????????????????+ #????????????????????? | | ????????????????????????# #????????????????????? | | ????????????????????????# #????????????????????? | | ????????????????????????#g ##?##????????????????? | | #####???????????????##### u## ####?????????????? | | ###################! *** ! #?????????????? | | [ [ [![[==g![*%!= # #??????????? | | %! *== |=! Yl=%*+g= + #??????????? | | = [ Y !@==u=% [ !#?????????????? | | ####+######+##+#####![%[!# k #?????????????? | | #+###?? ????# ??##*[=## |+ ??????????? | | ##"#????# ??# !="#? # ?????????? | | #???????# [?# T#?? #?????????????? | | #???????# ! = ## "#???? #?????????????? | | # ##??# + ##?????#?????????????? | | """ # ##??# ! # #????????????????????? | | " """ ######??# # #????????????????????? | | " """ #???????# + #????????????????????? | | #???????# [ # #????????????????????? | | ######################## #????????????????????? | | ^ ??? #????????????????????? | | /=* ^ ??? +????????????????????? | | ^ ??? #????????????????????? | | ###+############????????####?????????????????????? | | #????????????????????????????????????????? | | #????????????????????????????????????????? | | #????????????????????????????????????????? | | =!! #????????????????????????????????????????? | | " =!! #????????????????????????????????????????? | | T =!! #????????????????????????????????????????? | | " #????????????????????????????????????????? | | #????????????????????????????????????????? | | ###"T"###????????????????????????????????????????? | +----------------------------------------------------+ Best States ------------- Heat Dissipation 31 Energy Generation 14 Energy Capacity 250 Matter Stores 300 Matter Capacity 300 Sight Range 18 Terrain Scan Density 10 Evasion (%) 55 Targeting Accuracy 8 Recoil Reduction 2 Offensive Hacking 10 Item Schematics ----------------- None Robot Schematics ------------------ None Fabricated ------------ Nothing Alien Tech Used ----------------- None Achievements -------------- Librarian Loot Pinata Storm Trooper Tourist Challenges ------------ None Game ------ Seed DecoderLegAutobeam Manual? 0 Play Time 00:35:31 Cumulative 1.3 hours Start 2024.04.02 @ 09:40:13 End 2024.04.02 @ 10:16:51 Sessions 1 Manual Loads 0 Difficulty Rogue Special Mode None Game No. 3 Rogue 2 Adventurer 1 Explorer 0 Win Type - Total 0 Types 0/0/0/0/0/0/0/0/0 Lore% 5 Gallery% 4 Achievement% 5 Wizard Run 0 Options --------- Layout 0 ASCII 0 Keyboard 0 Movement Arrows Keybinds 0 Fullscreen 1 Font 18/SmallcapsGlow Map View 76x50 Zoom Use 0% Tactical HUD 0 Map Filters NONE Filters NONE Steam 1 RUN: e74f7566-b737-4b3b-a342-05e012f38911